bitfinex-derivatives/quotes_SOLF0:USTF0_20260121
["timestamp","ask_amount","ask_price","bid_price","bid_amount"]
[1768980655183,0.05682995,128.27,128.24,0.05414641]
[1768980655383,1.92388968,128.27,128.24,0.05414641]
[1768980655587,1.92388968,128.27,128.22,3.63394874]
[1768980656090,0.05682995,128.27,128.22,3.63394874]
[1768980656693,0.05682995,128.27,128.23,0.0522791]
[1768980656991,0.05682995,128.27,128.23,3.68622784]
[1768980658794,1.92388968,128.27,128.23,0.0522791]
[1768980658993,2.98408462,128.27,128.23,0.0522791]
[1768980659396,1.86705973,128.25,128.21,3.63394874]
[1768980660389,12.4984589,128.25,128.17,7.0288]
[1768980660702,1.86705973,128.23,128.17,7.0288]
[1768980661083,1.86705973,128.21,128.15,7.03]
[1768980661287,1.86705973,128.23,128.14,109.3691]
[1768980661486,1.86705973,128.23,128.14,7.0304]
[1768980661693,1.86705973,128.23,128.13,406.07885973]
[1768980661896,1.86705973,128.23,128.13,111.23885973]
[1768980662390,1.86705973,128.23,128.14,3.63394874]
[1768980662595,1.86705973,128.21,128.14,3.63394874]
[1768980662891,1.86705973,128.21,128.16,3.63394874]
[1768980668701,3.60639917,128.2,128.14,3.63394874]
[1768980668997,1.87253883,128.19,128.14,3.63394874]
[1768980670292,5.478938,128.19,128.14,3.63394874]
[1768980670698,5.478938,128.19,128.15,0.05107667]
[1768980671791,0.05103138,128.2,128.15,3.68502541]
[1768980672993,5.478938,128.23,128.17,7.0291]
[1768980673198,3.60639917,128.23,128.18,3.63394874]
[1768980673400,3.60639917,128.25,128.19,3.63394874]
[1768980674494,0.05757714,128.23,128.21,0.0549391]
[1768980680397,8.89693883,128.26,128.21,3.75581572]
[1768980681001,10.95347048,128.25,128.21,0.0549391]
[1768980681390,0.05787955,128.24,128.21,0.0549391]
[1768980691406,0.05787955,128.24,128.21,3.75581572]
[1768980697818,10.95247048,128.27,128.21,3.75581572]
[1768980698821,0.04960306,128.25,128.21,3.75581572]
[1768980699126,0.04960306,128.25,128.22,3.70087662]
[1768980700316,13.07164869,128.29,128.22,3.70087662]
[1768980700824,10.95177048,128.28,128.22,3.70087662]
[1768980704625,0.04970457,128.26,128.24,0.0570244]
[1768980706726,0.04970457,128.26,128.24,3.96564433]
[1768980706916,5.74058154,128.29,128.24,3.96564433]
[1768980716622,3.91908955,128.28,128.24,0.0570244]
[1768980719143,5.74058154,128.27,128.21,10.93521993]
[1768980719433,5.74058154,128.27,128.22,3.90861993]
[1768980720330,1.87253883,128.26,128.22,3.90861993]
[1768980721835,0.0558162,128.25,128.23,0.05101543]
[1768980722731,1.92835503,128.25,128.21,7.0266]
[1768980723436,1.92835503,128.25,128.2,3.90861993]
[1768980725035,1.92835503,128.25,128.2,10.93621993]
[1768980726236,1.92835503,128.25,128.2,3.90861993]
[1768980726432,3.86804271,128.24,128.18,10.93681993]
[1768980727030,0.04986674,128.22,128.19,3.90861993]
[1768980728730,1.87253883,128.25,128.2,3.90861993]
[1768980728934,3.86804271,128.26,128.2,3.90861993]
[1768980729828,3.86804271,128.26,128.21,3.90861993]
[1768980734340,10.89234271,128.26,128.21,3.90861993]
[1768980740946,0.05410803,128.25,128.21,3.90861993]
[1768980741151,0.05410803,128.25,128.22,0.05078671]
[1768980741453,7.07900803,128.25,128.22,0.05078671]
[1768980741649,7.07900803,128.25,128.21,3.90861993]
[1768980741846,12.61019082,128.25,128.19,3.82572674]
[1768980742150,10.74011334,128.25,128.19,3.82572674]
[1768980742952,10.74011334,128.25,128.21,0.05626928]
[1768980745555,3.66110531,128.24,128.21,0.05626928]
[1768980745852,3.66110531,128.24,128.19,3.82572674]
[1768980746251,10.68770531,128.22,128.17,3.82572674]
[1768980746450,10.68770531,128.22,128.16,7.0296]
[1768980746451,3.66110531,128.22,128.11,3.82572674]
[1768980746748,116.62362455,128.18,128.11,3.82572674]
[1768980746950,3.66110531,128.15,128.04,57.97815478]
[1768980747148,3.66110531,128.15,128.04,167.43035478]
[1768980747348,3.66110531,128.14,128.06,7.035]
[1768980747850,5.76780543,128.13,128.06,7.035]
[1768980748052,0.05581061,128.11,128.06,7.035]
[1768980748852,0.05581061,128.11,128.07,3.82572674]
[1768980749053,0.05581061,128.11,128.07,3.87568528]
[1768980750346,0.05581061,128.11,128.07,10.91008528]
[1768980750550,3.66110531,128.14,128.08,3.82572674]
[1768980751757,7.0289,128.18,128.11,3.82572674]
[1768980751963,10.69000531,128.18,128.11,3.82572674]
[1768980752349,3.66110531,128.18,128.11,3.82572674]
[1768980752946,3.66110531,128.18,128.13,0.04984477]
[1768980753150,0.04996613,128.16,128.13,0.04984477]
[1768980753961,7.0278,128.2,128.13,3.87557151]
[1768980754163,3.66110531,128.21,128.13,3.87557151]
[1768980754662,3.66110531,128.21,128.13,3.82572674]
[1768980755766,0.05459189,128.18,128.16,0.05243509]
[1768980756366,0.05459189,128.18,128.13,3.82572674]
[1768980759167,3.7156972,128.18,128.13,3.82572674]
[1768980759855,3.7156972,128.18,128.11,3.82572674]
[1768980760058,3.66110531,128.18,128.11,3.82572674]
[1768980760353,0.05489075,128.16,128.11,3.82572674]
[1768980760969,0.05489075,128.16,128.08,109.415]
[1768980760970,3.71599606,128.16,128.09,3.82572674]
[1768980761467,0.05304208,128.14,128.09,3.82572674]
[1768980762062,0.05304208,128.14,128.1,3.82572674]
[1768980763571,0.05304208,128.14,128.11,0.05494646]
[1768980771271,0.05304208,128.14,128.11,3.71721163]
[1768980771572,0.05304208,128.14,128.11,0.05494646]
[1768980773479,0.05304208,128.14,128.11,3.71721163]
[1768980776782,3.66110531,128.16,128.11,3.71721163]
[1768980777783,0.05794658,128.15,128.11,3.71721163]
[1768980780780,3.71683245,128.18,128.11,3.71721163]
[1768980780781,3.71683245,128.21,128.12,3.66226517]
[1768980781281,3.71683245,128.21,128.07,109.4264]
[1768980781282,3.71683245,128.15,128.08,3.66226517]
[1768980781884,3.71683245,128.15,128.1,0.05821937]
[1768980782887,0.04932788,128.14,128.1,0.05821937]
[1768980783088,3.76616033,128.14,128.06,3.66226517]
[1768980783484,3.71683245,128.14,128.06,3.66226517]
[1768980783684,3.71683245,128.13,128.06,3.66226517]
[1768980784390,0.05181037,128.11,128.08,0.05578994]
[1768980787796,3.76864282,128.11,128.03,3.66226517]
[1768980788295,3.71683245,128.11,128.03,3.66226517]
[1768980789087,0.05771797,128.08,128.03,3.66226517]
[1768980792596,10.74983245,128.11,128.03,3.66226517]
[1768980792795,5.76251541,128.1,128.03,3.66226517]
[1768980792996,10.74983245,128.11,128.03,3.66226517]
[1768980793199,5.76251541,128.1,128.03,3.66226517]
[1768980793499,10.74983245,128.11,128.03,3.66226517]
[1768980793795,5.76135833,128.1,128.03,3.66226517]
[1768980793995,10.74983245,128.11,128.03,3.66226517]
[1768980794204,5.76135833,128.1,128.03,3.66226517]
[1768980794392,10.74983245,128.11,128.03,3.66226517]
[1768980794590,5.76021673,128.1,128.03,3.66226517]
[1768980794791,3.71683245,128.1,128.03,3.66226517]
[1768980796400,3.71683245,128.1,128.04,4.09721448]
[1768980797504,120.88661876,128.14,128.06,4.09721448]
[1768980797699,9.98319903,128.13,128.06,4.09721448]
[1768980797993,5.75780482,128.12,128.06,4.14814805]
[1768980798393,7.0327,128.11,128.06,4.14814805]
[1768980799494,7.0327,128.11,128.06,0.05093357]
[1768980799495,11.25809421,128.11,128.06,0.05093357]
[1768980800604,0.05235864,128.1,128.06,0.05093357]
[1768980804911,0.05235864,128.1,128.07,4.09721448]
[1768980805103,0.05235864,128.1,128.06,0.05093357]
[1768980811509,11.31105285,128.1,128.06,0.05093357]
[1768980814309,4.22539421,128.08,128.01,4.09721448]
[1768980815516,11.26029421,128.07,128.01,4.09721448]
[1768980815714,4.22539421,128.06,128.01,4.09721448]
[1768980817912,0.05508066,128.05,128.01,4.09721448]
[1768980818305,4.22539421,128.08,128.02,4.15575592]
[1768980819326,5.76181599,128.07,128.02,4.15575592]
[1768980819516,4.22539421,128.08,128.02,4.15575592]
[1768980819717,5.76125361,128.07,128.02,4.15575592]
[1768980820022,11.25959421,128.08,128.02,4.15575592]
[1768980823325,5.76718761,128.07,128.02,4.15575592]
[1768980823520,0.0518358,128.06,128.02,4.15575592]
[1768980829934,11.16949433,128.1,128.03,4.07041075]
[1768980830225,5.77135469,128.09,128.03,4.07041075]
[1768980830430,5.77135469,128.08,128.03,4.07041075]
[1768980830633,11.16949433,128.1,128.03,4.07041075]
[1768980830834,5.77176808,128.09,128.03,4.07041075]
[1768980831031,5.77176808,128.08,128.05,0.05494825]
[1768980831227,7.0337,128.09,128.05,0.05494825]
[1768980831427,5.77177009,128.08,128.05,0.05494825]
[1768980831734,7.0337,128.09,128.05,0.05494825]
[1768980831935,5.77098915,128.08,128.05,0.05494825]
[1768980832237,4.13599433,128.08,128.05,0.05494825]
[1768980832437,5.77123353,128.07,128.03,4.07041075]
[1768980832735,11.21987511,128.08,128.03,4.07041075]
[1768980833034,5.77119761,128.07,128.03,4.07041075]
[1768980833236,11.21987511,128.08,128.03,4.07041075]
[1768980833435,5.77131049,128.07,128.03,4.07041075]
[1768980833730,11.21987511,128.08,128.04,0.05480995]
[1768980833936,5.77131049,128.07,128.04,0.05480995]
[1768980834232,11.21987511,128.08,128.04,0.05480995]
[1768980834436,5.77070318,128.07,128.04,0.05480995]
[1768980834632,11.21987511,128.08,128.04,0.05480995]
[1768980834841,5.77070318,128.07,128.04,0.05480995]
[1768980835032,11.21987511,128.08,128.04,0.05480995]
[1768980835233,5.77068139,128.07,128.04,0.05480995]
[1768980835431,11.21987511,128.08,128.04,0.05480995]
[1768980835631,5.77057546,128.07,128.04,0.05480995]
[1768980835836,11.21987511,128.08,128.04,0.05480995]
[1768980836135,5.77057546,128.07,128.04,0.05480995]
[1768980836329,11.21987511,128.08,128.04,0.05480995]
[1768980836530,5.77038442,128.07,128.04,0.05480995]
[1768980836735,11.21987511,128.08,128.04,0.05480995]
[1768980836930,5.77038432,128.07,128.04,0.05480995]
[1768980837133,11.21987511,128.08,128.04,0.05480995]
[1768980837335,5.77038432,128.07,128.04,0.05480995]
[1768980837526,11.21987511,128.08,128.04,0.05480995]
[1768980837731,5.77030303,128.07,128.04,0.05480995]
[1768980837933,11.21987511,128.08,128.04,0.05480995]
[1768980838231,5.77593227,128.07,128.04,0.05480995]
[1768980838431,11.21987511,128.08,128.04,0.05480995]
[1768980838627,5.77594941,128.07,128.04,0.05480995]
[1768980838935,0.04968078,128.08,128.04,4.1252207]
[1768980839944,11.16959433,128.1,128.04,4.1252207]
[1768980840237,5.7766094,128.09,128.04,4.1252207]
[1768980840441,5.7766094,128.08,128.04,4.1252207]
[1768980840642,5.77597328,128.07,128.04,4.1252207]
[1768980840943,18.45721888,128.1,128.04,4.1252207]
[1768980841140,5.77594623,128.09,128.04,4.1252207]
[1768980841339,5.77594623,128.08,128.04,4.1252207]
[1768980841640,5.77594623,128.07,128.04,4.1252207]
[1768980841841,18.45721888,128.1,128.04,4.1252207]
[1768980842041,5.77560496,128.09,128.04,4.1252207]
[1768980842234,5.77560496,128.08,128.04,4.1252207]
[1768980842435,5.77560496,128.07,128.04,4.1252207]
[1768980842743,11.16959433,128.1,128.04,4.1252207]
[1768980842940,5.77567999,128.09,128.04,4.1252207]
[1768980843239,5.77567999,128.08,128.04,4.1252207]
[1768980843440,11.16959433,128.1,128.04,4.1252207]
[1768980843634,5.77649197,128.09,128.04,4.1252207]
[1768980843835,5.77649197,128.08,128.04,4.1252207]
[1768980844036,11.16959433,128.1,128.04,4.1252207]
[1768980844236,5.77649618,128.09,128.04,4.1252207]
[1768980844437,5.77649618,128.08,128.04,4.1252207]
[1768980844637,5.77649618,128.07,128.04,4.1252207]
[1768980844839,11.16959433,128.1,128.04,4.1252207]
[1768980845039,5.77676197,128.09,128.04,4.1252207]
[1768980845240,5.77676197,128.08,128.04,4.1252207]
[1768980845538,5.77676197,128.07,128.04,4.1252207]
[1768980845739,11.16959433,128.1,128.04,4.1252207]
[1768980845936,5.77694635,128.09,128.04,4.1252207]
[1768980846137,5.77694635,128.08,128.04,4.1252207]
[1768980846336,5.77694635,128.07,128.04,4.1252207]
[1768980846543,11.16959433,128.1,128.04,4.1252207]
[1768980846734,9.91363634,128.09,128.04,4.1252207]
[1768980846933,5.77764201,128.08,128.04,4.1252207]
[1768980847144,5.77764201,128.07,128.04,4.1252207]
[1768980847344,4.13599433,128.09,128.04,4.1252207]
[1768980847546,5.77820701,128.08,128.04,4.1252207]
[1768980847747,5.77820701,128.07,128.04,4.1252207]
[1768980847947,4.13599433,128.09,128.04,4.1252207]
[1768980848149,5.77820383,128.08,128.04,4.1252207]
[1768980848339,5.77820383,128.07,128.04,4.1252207]
[1768980848548,4.13599433,128.09,128.04,4.1252207]
[1768980848734,5.77854602,128.08,128.04,4.1252207]
[1768980848939,5.77854602,128.07,128.04,4.1252207]
[1768980849240,4.13599433,128.09,128.04,4.1252207]
[1768980849441,5.77891497,128.08,128.04,4.1252207]
[1768980849640,5.77891497,128.07,128.04,4.1252207]
[1768980849939,4.13599433,128.09,128.04,4.1252207]
[1768980850141,5.77891497,128.08,128.04,4.1252207]
[1768980850342,5.77891497,128.07,128.04,4.1252207]
[1768980850541,4.13599433,128.09,128.04,4.1252207]
[1768980850841,5.77926972,128.08,128.04,4.1252207]
[1768980851149,5.77926972,128.07,128.04,4.1252207]
[1768980851349,4.13599433,128.09,128.04,4.1252207]
[1768980851546,5.77979537,128.08,128.04,4.1252207]
[1768980851742,5.77979537,128.07,128.04,4.1252207]
[1768980851946,4.13599433,128.09,128.04,4.1252207]
[1768980852246,5.77979537,128.08,128.04,4.1252207]
[1768980852450,5.77979537,128.07,128.04,4.1252207]
[1768980852652,4.13599433,128.09,128.04,4.1252207]
[1768980852848,5.78037443,128.08,128.04,4.1252207]
[1768980853150,5.78037443,128.07,128.04,0.05480995]
[1768980853351,5.78037443,128.06,128.04,0.05480995]
[1768980853551,4.13599433,128.08,128.04,0.05480995]
[1768980853851,9.91692075,128.07,128.04,0.05480995]
[1768980854053,5.78092642,128.06,128.04,0.05480995]
[1768980854251,4.19045291,128.07,128.04,0.05480995]
[1768980854454,5.78161133,128.06,128.04,0.05480995]
[1768980854651,4.19045291,128.07,128.04,0.05480995]
[1768980854852,5.78161133,128.06,128.04,0.05480995]
[1768980855153,4.19045291,128.07,128.04,0.05480995]
[1768980855354,5.78160933,128.06,128.04,0.05480995]
[1768980855551,4.19045291,128.07,128.04,0.05480995]
[1768980855850,5.7825597,128.06,128.04,0.05480995]
[1768980856050,4.19045291,128.07,128.04,0.05480995]
[1768980856251,5.78250951,128.06,128.04,0.05480995]
[1768980856451,4.19045291,128.07,128.04,0.05480995]
[1768980856651,5.78376257,128.06,128.04,0.05480995]
[1768980856852,4.19045291,128.07,128.04,0.05480995]
[1768980857047,5.78330005,128.06,128.04,0.05480995]
[1768980857247,4.19045291,128.07,128.04,0.05480995]
[1768980857447,5.78393157,128.06,128.04,0.05480995]
[1768980857643,4.19045291,128.07,128.04,0.05480995]
[1768980857848,5.78393157,128.06,128.04,0.05480995]
[1768980858049,4.19045291,128.07,128.04,0.05480995]
[1768980858347,5.78393157,128.06,128.04,0.05480995]
[1768980858551,4.19045291,128.07,128.04,0.05480995]
[1768980858751,5.78462926,128.06,128.04,0.05480995]
[1768980858952,4.19045291,128.07,128.04,0.05480995]
[1768980859152,5.78462926,128.06,128.04,0.05480995]
[1768980859454,4.19045291,128.07,128.04,0.05480995]
[1768980859654,5.78544094,128.06,128.04,0.05480995]
[1768980859854,4.19045291,128.07,128.04,0.05480995]
[1768980860054,5.78544094,128.06,128.04,0.05480995]
[1768980860359,4.19045291,128.07,128.04,0.05480995]
[1768980860551,5.78547373,128.06,128.02,4.07041075]
[1768980860749,5.78463045,128.05,128.02,4.07041075]
[1768980860950,4.19045291,128.07,128.02,4.07041075]
[1768980861247,5.78540647,128.06,128.02,11.10791075]
[1768980861447,5.78540647,128.05,128.02,11.10791075]
[1768980861644,4.19045291,128.07,128.03,0.04979871]
[1768980861952,5.78535129,128.06,128.03,0.04979871]
[1768980862250,5.78535129,128.05,128.03,0.04979871]
[1768980862456,4.19045291,128.07,128.03,0.04979871]
[1768980862656,5.78620151,128.06,128.03,0.04979871]
[1768980862854,5.78620151,128.05,128.03,0.04979871]
[1768980863059,4.19045291,128.07,128.03,0.04979871]
[1768980863358,5.78596063,128.06,128.03,0.04979871]
[1768980863560,5.78596063,128.05,128.03,0.04979871]
[1768980863860,4.19045291,128.07,128.03,0.04979871]
[1768980864051,5.7864053,128.06,128.03,0.04979871]
[1768980864257,5.7864053,128.05,128.03,0.04979871]
[1768980864559,4.19045291,128.07,128.03,0.04979871]
[1768980864760,5.78697438,128.06,128.03,0.04979871]
[1768980865062,7.438e-05,128.05,128.03,0.04979871]
[1768980865258,4.19045291,128.07,128.03,0.04979871]
[1768980870764,4.19045291,128.07,128.03,7.08659871]
[1768980872556,5.291e-05,128.07,128.04,7.0362]
[1768980872758,5.291e-05,128.07,128.04,11.05119137]
[1768980876864,0.86238565,128.07,128.03,7.08669871]
[1768980877069,0.86238565,128.07,128.03,0.04979871]
[1768980879969,0.86238565,128.07,128.0,4.01499137]
[1768980880471,0.88505234,128.06,128.0,4.01499137]
[1768980880968,0.88505234,128.06,128.0,11.05349137]
[1768980881166,0.88505234,128.06,128.02,0.05891835]
[1768980881364,0.05785089,128.04,128.02,0.05891835]
[1768980882171,0.88505234,128.06,128.02,0.05891835]
[1768980883973,0.05916499,128.05,128.02,0.05891835]
[1768980884871,0.96592996,128.05,128.02,0.05891835]
[1768980886371,0.96592996,128.05,127.99,11.05359137]
[1768980887674,0.96592996,128.05,128.01,0.04948069]
[1768980894579,0.97001671,128.04,128.01,0.04948069]
[1768980894768,0.97001671,128.04,127.97,11.13298888]
[1768980895475,8.00661671,128.04,127.97,11.13298888]
[1768980895878,0.05696534,128.02,127.99,0.05170554]
[1768980901367,0.97001671,128.04,127.99,4.14479442]
[1768980902679,0.97001671,128.04,127.99,11.18389442]
[1768980902990,0.97001671,128.04,127.99,4.14479442]
[1768980904079,8.29299128,128.06,127.99,4.14479442]
[1768980904477,8.29299128,128.06,128.01,7.038]
[1768980904677,8.29299128,128.06,128.0,4.09308888]
[1768980905277,1.0091757,128.06,128.0,4.09308888]
[1768980905784,1.0091757,128.06,128.02,0.05436224]
[1768980906077,0.04925754,128.04,128.02,0.05436224]
[1768980908185,1.0091757,128.06,128.02,0.05436224]
[1768980909486,0.05579674,128.05,128.02,0.05436224]
[1768980932210,0.05579674,128.05,128.02,4.40951712]
[1768980932609,0.05579674,128.05,128.02,0.05436224]
[1768980932812,1.1669181,128.05,127.99,7.0386]
[1768980933006,1.1669181,128.05,127.98,4.35515488]
[1768980933203,1.11112136,128.05,128.0,7.0386]
[1768980934107,1.11112136,128.05,128.01,0.05165245]
[1768980941512,1.11112136,128.05,127.98,11.39435488]
[1768980941513,1.08193011,128.04,127.98,11.39435488]
[1768980941817,1.08193011,128.03,127.96,4.35515488]
[1768980942618,109.477,128.02,127.9,4.35515488]
[1768980942820,7.28381558,128.0,127.9,4.35515488]
[1768980943009,7.28381558,127.99,127.9,4.35515488]
[1768980943212,9.69834212,128.01,127.9,4.35515488]
[1768980943213,5.93805678,127.98,127.91,4.35515488]
[1768980943413,7.28381558,128.01,127.91,4.35515488]
[1768980943620,11.75269391,128.0,127.93,4.35515488]
[1768980943917,5.82395585,127.99,127.93,4.35515488]
[1768980944214,7.0377,128.02,127.93,4.35515488]
[1768980944215,5.82432788,127.98,127.93,4.35515488]
[1768980944415,0.05840019,127.97,127.95,0.05983026]
[1768980944919,123.80411558,128.01,127.95,0.05983026]
[1768980945119,0.05122523,127.97,127.95,0.05983026]
[1768980948106,0.05122523,127.97,127.92,4.61351074]
[1768980950520,0.05122523,127.97,127.88,4.61351074]
[1768980950921,109.5019,127.99,127.88,4.61351074]
[1768980951117,7.0395,127.99,127.9,4.61351074]
[1768980951823,7.0399,127.98,127.9,4.61351074]
[1768980952518,0.05558768,127.95,127.9,4.61351074]
[1768980952719,0.05558768,127.95,127.93,0.04971792]
[1768980955315,0.05558768,127.95,127.91,4.61351074]
[1768980955713,109.4922,128.0,127.91,4.61351074]
[1768980955917,5.7921542,127.99,127.91,4.61351074]
[1768980956117,109.4922,128.0,127.91,4.61351074]
[1768980956323,5.79099638,127.99,127.91,4.61351074]
[1768980956525,109.4922,128.0,127.91,4.61351074]
[1768980956719,5.7909985,127.99,127.91,4.61351074]
[1768980956925,7.0399,127.98,127.91,4.61351074]
[1768980957123,0.05237647,127.96,127.91,4.61351074]
[1768980957731,0.05237647,127.96,127.92,0.05626181]
[1768980958826,7.09337647,127.96,127.92,0.05626181]
[1768980959023,7.09337647,127.96,127.89,4.61351074]
[1768980959327,7.041,127.96,127.89,4.61351074]
[1768980959926,7.0414,127.95,127.89,4.61351074]
[1768980960230,0.05811572,127.94,127.89,4.61351074]
[1768980960728,0.05811572,127.94,127.89,11.65801074]
[1768980960924,0.05811572,127.94,127.9,4.61351074]
[1768980964331,0.05811572,127.94,127.88,4.61351074]
[1768980964332,7.10011572,127.94,127.88,4.61351074]
[1768980965427,7.0425,127.93,127.88,4.61351074]
[1768980965623,109.60011572,127.94,127.86,4.61351074]
[1768980966028,109.5506,127.93,127.81,4.61351074]
[1768980966221,109.5506,127.93,127.76,109.6934]
[1768980966222,109.5884,127.89,127.8,4.61351074]
[1768980966425,115.37857967,127.88,127.8,4.61351074]
[1768980966733,115.37857967,127.88,127.75,109.6979]
[1768980966734,109.5952,127.88,127.78,4.61351074]
[1768980967129,7.046,127.87,127.78,4.61351074]
[1768980967332,109.594,127.88,127.79,4.61351074]
[1768980967722,0.05087392,127.85,127.79,4.61351074]
[1768980969927,0.05087392,127.85,127.81,4.66958772]
[1768980975746,7.0461,127.87,127.81,4.66958772]
[1768980976935,0.05792352,127.85,127.81,4.66958772]
[1768980977346,7.0461,127.87,127.81,4.66958772]
[1768980978638,7.045,127.89,127.81,4.66958772]
[1768980979040,7.045,127.89,127.81,4.61351074]
[1768980979646,7.045,127.89,127.84,0.05452373]
[1768980979847,7.044,127.91,127.84,0.05452373]
[1768980980040,109.5644,127.92,127.84,4.64535316]
[1768980980240,109.5644,127.92,127.84,4.59082943]
[1768980981046,109.5644,127.92,127.87,0.05112284]
[1768980981445,109.5644,127.92,127.84,4.59082943]
[1768980981852,7.0443,127.9,127.84,4.59082943]
[1768980982555,7.0443,127.9,127.86,0.05721256]
[1768980982756,0.04991764,127.88,127.86,0.05721256]
[1768980987052,7.0435,127.92,127.86,4.64804199]
[1768980988559,0.0545202,127.9,127.86,4.64804199]
[1768980990460,109.531,127.96,127.86,4.64804199]
[1768980990664,12.00645546,127.95,127.86,4.64804199]
[1768980990864,5.79060301,127.94,127.86,4.59082943]
[1768980991157,7.0431,127.92,127.86,4.59082943]
[1768980991352,109.5476,127.94,127.84,4.59082943]
[1768980991553,12.00804815,127.93,127.88,0.058058]
[1768980991759,5.79139241,127.92,127.88,0.058058]
[1768980992070,109.5476,127.94,127.88,0.058058]
[1768980992360,12.00701997,127.93,127.88,0.058058]
[1768980992562,109.5476,127.94,127.88,0.058058]
[1768980992754,12.00814266,127.93,127.88,0.058058]
[1768980992954,109.5476,127.94,127.88,0.058058]
[1768980993151,12.00814266,127.93,127.88,0.058058]
[1768980993460,109.5476,127.94,127.88,0.058058]
[1768980993660,12.01057123,127.93,127.88,0.058058]
[1768980993962,7.0436,127.91,127.88,0.058058]
[1768980996256,7.09557113,127.91,127.88,0.058058]
[1768980996462,0.05197113,127.91,127.88,0.058058]
[1768981000663,7.09547113,127.91,127.88,0.058058]
[1768981002864,7.09547113,127.91,127.85,4.59082943]
[1768981003069,0.05197113,127.91,127.83,4.59082943]
[1768981003258,11.95708594,127.9,127.83,4.59082943]
[1768981003462,5.81139349,127.89,127.83,4.59082943]
[1768981003666,7.0447,127.89,127.83,4.59082943]
[1768981003970,109.5529,127.93,127.83,4.59082943]
[1768981004162,11.95955712,127.92,127.85,0.05012301]
[1768981004361,11.95955712,127.91,127.84,4.59082943]
[1768981004562,5.81138177,127.9,127.87,0.05248141]
[1768981004763,109.5529,127.93,127.87,0.05248141]
[1768981004963,11.88656632,127.92,127.87,0.05248141]
[1768981005164,5.81306367,127.91,127.87,0.05248141]
[1768981005372,5.81306367,127.9,127.87,0.05248141]
[1768981005562,7.0441,127.9,127.87,0.05248141]
[1768981006969,7.0433,127.92,127.87,0.05248141]
[1768981007165,5.81711267,127.91,127.87,0.05248141]
[1768981007371,7.0433,127.92,127.87,0.05248141]
[1768981008259,5.82315822,127.91,127.87,0.05248141]
[1768981008460,7.0433,127.92,127.87,0.05248141]
[1768981008663,5.82315822,127.91,127.87,0.05248141]
[1768981008967,7.0433,127.92,127.87,0.05248141]
[1768981009161,5.82350297,127.91,127.87,0.05248141]
[1768981009360,7.0433,127.92,127.87,0.05248141]
[1768981009573,5.82688783,127.91,127.87,0.05248141]
[1768981009775,7.0433,127.92,127.87,0.05248141]
[1768981009965,12.87046612,127.91,127.87,0.05248141]
[1768981010165,7.0436,127.91,127.87,0.05248141]
[1768981010365,5.8302359,127.9,127.87,0.05248141]
[1768981010670,0.05581395,127.9,127.87,0.05248141]
[1768981011374,5.82895384,127.89,127.87,0.05248141]
[1768981011565,0.05581395,127.9,127.87,0.05248141]
[1768981011868,5.82806911,127.89,127.87,0.05248141]
[1768981012068,0.05581395,127.9,127.87,0.05248141]
[1768981012261,5.82809402,127.89,127.87,0.05248141]
[1768981012562,0.05581395,127.9,127.87,0.05248141]
[1768981012764,5.82896772,127.89,127.87,0.05248141]
[1768981012971,0.05581395,127.9,127.87,0.05248141]
[1768981013170,5.82901755,127.89,127.87,0.05248141]
[1768981013372,0.05581395,127.9,127.87,0.05248141]
[1768981013570,5.83068106,127.89,127.87,0.05248141]
[1768981013767,0.05581395,127.9,127.87,0.05248141]
[1768981013963,5.83068106,127.89,127.87,0.05248141]
[1768981014168,0.05581395,127.9,127.87,0.05248141]
[1768981014371,5.83212342,127.89,127.87,0.05248141]
[1768981014674,0.05581395,127.9,127.87,0.05248141]
[1768981014876,5.83237646,127.89,127.87,0.05248141]
[1768981015076,0.05581395,127.9,127.87,0.05248141]
[1768981015271,5.83229679,127.89,127.87,0.05248141]
[1768981015476,0.05581395,127.9,127.87,0.05248141]
[1768981015675,5.83339417,127.89,127.87,0.05248141]
[1768981015876,0.05581395,127.9,127.87,0.05248141]
[1768981016078,5.83339098,127.89,127.87,0.05248141]
[1768981016281,0.05581395,127.9,127.87,0.05248141]
[1768981016472,5.83453628,127.89,127.87,0.05248141]
[1768981016672,0.05581395,127.9,127.87,0.05248141]
[1768981016870,5.83477042,127.89,127.87,0.05248141]
[1768981017077,0.05581395,127.9,127.87,0.05248141]
[1768981017274,0.05581395,127.9,127.87,4.57760193]
[1768981020176,7.043,127.93,127.87,4.57760193]
[1768981020371,11.86467263,127.92,127.87,4.57760193]
[1768981020671,5.84104592,127.91,127.87,4.57760193]
[1768981020871,7.043,127.93,127.87,4.57760193]
[1768981021081,5.84124796,127.92,127.87,4.57760193]
[1768981021274,5.84124796,127.91,127.87,4.57760193]
[1768981021474,7.043,127.93,127.87,4.57760193]
[1768981021676,5.84156519,127.92,127.87,4.57760193]
[1768981021877,5.84156519,127.91,127.88,4.52512052]
[1768981022074,7.043,127.93,127.88,4.52512052]
[1768981022279,5.84121149,127.92,127.88,4.52512052]
[1768981022476,5.84121149,127.91,127.88,4.52512052]
[1768981022782,7.043,127.93,127.88,4.52512052]
[1768981022982,5.84240537,127.92,127.88,4.52512052]